fUST/lending_fUST_20250730
["ID","MTS","AMOUNT","RATE_DAILY","PERIOD"]
[375996912,1753815052864,-504.73741654,0.00019373,2]
[375996915,1753815052876,-500.0,0.00019373,2]
[375996917,1753815052885,-500.39413732,0.00019373,2]
[375996919,1753815052895,-214.91980558,0.0001939,2]
[375996921,1753815052904,-12637.12721421,0.0001939,2]
[375996923,1753815052914,-841.06558547,0.0001939,2]
[375996925,1753815052923,-160.0,0.0001939,2]
[375996927,1753815052932,-526.67226028,0.0001939,2]
[375996929,1753815052941,-231.39372452,0.0001939,2]
[375996930,1753815052951,-160.0,0.0001939,2]
[375996932,1753815052962,-216.1031716,0.0001939,2]
[375996935,1753815052972,-160.0,0.0001939,2]
[375996937,1753815052981,-160.0,0.0001939,2]
[375996939,1753815052991,-160.0,0.0001939,2]
[375996941,1753815053000,-460.5085953,0.0001939,2]
[375996943,1753815053010,-160.0,0.0001939,2]
[375996945,1753815053020,-160.0,0.0001939,2]
[375996947,1753815053030,-160.0,0.0001939,2]
[375996949,1753815053039,-204.90554,0.00019401,2]
[375996951,1753815053049,-204.90554,0.00019401,2]
[375996952,1753815053058,-151.0,0.00019401,2]
[375996954,1753815053069,-151.0,0.00019401,2]
[375996956,1753815053080,-251.84,0.00019444,2]
[375996958,1753815053090,-160.0,0.00019473,2]
[375996960,1753815053099,-460.0,0.0001958,2]
[375996962,1753815053109,-460.0,0.0001958,2]
[375996964,1753815053119,-460.0,0.0001958,2]
[375996967,1753815053129,-460.0,0.0001958,2]
[375996969,1753815053139,-460.0,0.0001958,2]
[375996970,1753815053148,-2692.21,0.0001958,2]
[375996972,1753815053157,-477.65570464,0.0001958,2]
[375996974,1753815053166,-460.0,0.0001958,2]
[375996976,1753815053175,-460.0,0.0001958,2]
[375996978,1753815053184,-2011.98,0.0001958,2]
[375996980,1753815053194,-460.0,0.0001958,2]
[375996982,1753815053204,-460.0,0.0001958,2]
[375996984,1753815053213,-460.0,0.0001958,2]
[375996986,1753815053222,-460.0,0.0001958,2]
[375996988,1753815053232,-460.0,0.0001958,2]
[375996990,1753815053242,-460.0,0.0001958,2]
[375996992,1753815053251,-460.0,0.0001958,2]
[375996994,1753815053261,-460.0,0.0001958,2]
[375996996,1753815053271,-460.0,0.0001958,2]
[375996998,1753815053280,-460.0,0.0001958,2]
[375997000,1753815053291,-460.0,0.0001958,2]
[375997002,1753815053301,-1786.74,0.0001958,2]
[375997004,1753815053310,-1340.19,0.0001958,2]
[375997006,1753815053319,-460.0,0.0001958,2]
[375997008,1753815053330,-485.19,0.0001958,2]
[375997010,1753815053339,-460.0,0.00019581,2]
[375997012,1753815053348,-460.0,0.00019581,2]
[375997014,1753815053357,-460.0,0.00019581,2]
[375997016,1753815053367,-460.0,0.00019581,2]
[375997018,1753815053377,-460.0,0.00019581,2]
[375997020,1753815053387,-460.0,0.00019581,2]
[375997022,1753815053396,-460.0,0.00019581,2]
[375997024,1753815053406,-460.0,0.00019581,2]
[375997026,1753815053416,-776.43,0.00019581,2]
[375997028,1753815053426,-460.0,0.00019581,2]
[375997030,1753815053436,-460.0,0.00019581,2]
[375997032,1753815053445,-460.0,0.00019581,2]
[375997034,1753815053455,-533.05,0.00019581,2]
[375997036,1753815053464,-487.71,0.00019581,2]
[375997038,1753815053477,-460.0,0.00019581,2]
[375997040,1753815053491,-581.64,0.00019581,2]
[375997042,1753815053500,-831.96,0.00019581,2]
[375997044,1753815053510,-460.0,0.00019581,2]
[375997046,1753815053519,-419.23770194,0.00019581,2]
[375997048,1753815053528,-634.2,0.00019581,2]
[375997050,1753815053538,-460.0,0.00019581,2]
[375997052,1753815053548,-542.26,0.00019581,2]
[375997054,1753815053557,-460.0,0.00019582,2]
[375997056,1753815053567,-462.33532036,0.00019582,2]
[375997058,1753815053578,-460.0,0.00019582,2]
[375997060,1753815053587,-460.0,0.00019582,2]
[375997062,1753815053597,-460.0,0.00019582,2]
[375997064,1753815053606,-460.0,0.00019582,2]
[375997065,1753815053616,-460.0,0.00019582,2]
[375997068,1753815053626,-460.0,0.00019582,2]
[375997069,1753815053636,-460.0,0.00019582,2]
[375997071,1753815053645,-460.0,0.00019582,2]
[375997073,1753815053655,-460.0,0.00019582,2]
[375997075,1753815053665,-460.0,0.00019582,2]
[375997077,1753815053674,-723.65,0.00019582,2]
[375997079,1753815053684,-486.47,0.00019582,2]
[375997081,1753815053693,-460.0,0.00019582,2]
[375997083,1753815053702,-590.32,0.00019582,2]
[375997085,1753815053711,-487.1,0.00019582,2]
[375997087,1753815053722,-460.0,0.00019582,2]
[375997088,1753815053731,-460.0,0.00019582,2]
[375997089,1753815053740,-460.0,0.00019582,2]
[375997090,1753815053749,-460.0,0.00019582,2]
[375997091,1753815053759,-460.0,0.00019582,2]
[375997092,1753815053768,-824.74,0.00019582,2]
[375997093,1753815053777,-460.0,0.00019582,2]
[375997094,1753815053787,-460.0,0.00019582,2]
[375997095,1753815053796,-533.02,0.00019582,2]
[375997096,1753815053806,-151.0,0.00019582,2]
[375997097,1753815053816,-460.0,0.00019582,2]
[375997098,1753815053826,-538.23,0.00019582,2]
[375997099,1753815053836,-460.0,0.00019582,2]
[375997100,1753815053845,-460.0,0.00019583,2]
[375997101,1753815053855,-460.0,0.00019583,2]
[375997102,1753815053864,-460.0,0.00019583,2]
[375997103,1753815053874,-4635.47,0.00019583,2]
[375997104,1753815053883,-201.4121682,0.00019583,2]
[375997105,1753815053894,-151.0,0.00019583,2]
[375997106,1753815053903,-460.0,0.00019583,2]
[375997108,1753815053913,-460.0,0.00019583,2]
[375997110,1753815053923,-1823.37,0.00019583,2]
[375997111,1753815053935,-460.0,0.00019583,2]
[375997113,1753815053945,-460.0,0.00019583,2]
[375997115,1753815053954,-460.0,0.00019583,2]
[375997117,1753815053964,-460.0,0.00019583,2]
[375997120,1753815053975,-460.0,0.00019583,2]
[375997121,1753815053984,-460.0,0.00019583,2]
[375997123,1753815053993,-460.0,0.00019583,2]
[375997125,1753815054003,-596.76,0.00019583,2]
[375997127,1753815054012,-460.0,0.00019583,2]
[375997129,1753815054022,-460.0,0.00019583,2]
[375997131,1753815054032,-1535.87,0.00019583,2]
[375997133,1753815054041,-460.0,0.00019583,2]
[375997135,1753815054051,-460.0,0.00019583,2]
[375997137,1753815054060,-460.0,0.00019583,2]
[375997139,1753815054069,-460.0,0.00019583,2]
[375997141,1753815054082,-675.4,0.00019583,2]
[375997143,1753815054091,-518.24,0.00019583,2]
[375997145,1753815054101,-460.0,0.00019583,2]
[375997147,1753815054110,-460.0,0.00019583,2]
[375997149,1753815054119,-460.0,0.00019583,2]
[375997151,1753815054128,-460.0,0.00019583,2]
[375997153,1753815054138,-460.0,0.00019583,2]
[375997155,1753815054148,-460.0,0.00019583,2]
[375997157,1753815054157,-460.0,0.00019583,2]
[375997159,1753815054166,-462.16405029,0.00019583,2]
[375997161,1753815054175,-500.0,0.00019583,2]
[375997163,1753815054185,-460.0,0.00019583,2]
[375997165,1753815054194,-500.0,0.00019583,2]
[375997167,1753815054203,-460.0,0.00019583,2]
[375997169,1753815054213,-460.0,0.00019583,2]
[375997171,1753815054222,-460.0,0.00019583,2]
[375997172,1753815054231,-460.0,0.00019583,2]
[375997174,1753815054241,-460.0,0.00019583,2]
[375997175,1753815054250,-460.0,0.00019583,2]
[375997176,1753815054261,-1950.65,0.00019583,2]
[375997177,1753815054271,-751.06,0.00019583,2]
[375997178,1753815054280,-1224.6,0.00019583,2]
[375997179,1753815054290,-460.0,0.00019583,2]
[375997180,1753815054299,-460.0,0.00019583,2]
[375997181,1753815054309,-460.0,0.00019583,2]
[375997182,1753815054318,-460.0,0.00019583,2]
[375997183,1753815054331,-460.0,0.00019583,2]
[375997184,1753815054340,-460.0,0.00019583,2]
[375997185,1753815054349,-460.0,0.00019583,2]
[375997186,1753815054358,-460.0,0.00019583,2]
[375997187,1753815054368,-461.8655653,0.00019583,2]
[375997188,1753815054378,-569.46,0.00019583,2]
[375997189,1753815054388,-460.0,0.00019583,2]
[375997190,1753815054398,-460.0,0.00019583,2]
[375997191,1753815054408,-460.0,0.00019583,2]
[375997192,1753815054418,-460.0,0.00019583,2]
[375997193,1753815054428,-460.0,0.00019583,2]
[375997194,1753815054437,-151.0,0.00019584,2]
[375997195,1753815054447,-151.0,0.00019584,2]
[375997196,1753815054457,-151.0,0.00019584,2]
[375997197,1753815054466,-208.38750257,0.00019584,2]
[375997198,1753815054479,-460.0,0.00019584,2]
[375997199,1753815054489,-1552.28,0.00019584,2]
[375997200,1753815054499,-151.0,0.00019584,2]
[375997201,1753815054510,-460.0,0.00019584,2]
[375997202,1753815054521,-460.0,0.00019584,2]
[375997203,1753815054531,-471.66945832,0.00019584,2]
[375997204,1753815054541,-460.0,0.00019584,2]
[375997205,1753815054551,-460.0,0.00019584,2]
[375997206,1753815054560,-467.02692035,0.00019584,2]
[375997207,1753815054570,-500.0,0.00019584,2]
[375997208,1753815054583,-450.28403271,0.00019584,2]
[375997209,1753815054593,-8314.2,0.00019584,2]
[375997210,1753815054603,-1632.28,0.00019584,2]
[375997211,1753815054613,-151.0,0.00019584,2]
[375997212,1753815054622,-151.0,0.00019584,2]
[375997213,1753815054632,-151.0,0.00019585,2]
[375997214,1753815054643,-151.0,0.00019585,2]
[375997215,1753815054652,-460.0,0.00019585,2]
[375997216,1753815054662,-151.0,0.00019585,2]
[375997217,1753815054671,-151.0,0.00019585,2]
[375997218,1753815054681,-460.0,0.00019585,2]
[375997219,1753815054692,-2333.32,0.00019585,2]
[375997220,1753815054701,-460.0,0.00019585,2]
[375997221,1753815054711,-2180.27,0.00019585,2]
[375997222,1753815054721,-460.0,0.00019585,2]
[375997223,1753815054731,-151.0,0.00019586,2]
[375997224,1753815054740,-204.90554,0.00019586,2]
[375997225,1753815054750,-204.90554,0.00019586,2]
[375997226,1753815054760,-460.0,0.00019586,2]
[375997227,1753815054770,-1626.06,0.00019586,2]
[375997228,1753815054779,-151.0,0.00019586,2]
[375997229,1753815054789,-151.0,0.00019587,2]
[375997230,1753815054799,-151.0,0.00019587,2]
[375997231,1753815054808,-151.0,0.00019587,2]
[375997232,1753815054818,-500.0,0.00019588,2]
[375997233,1753815054829,-397.40163073,0.00019588,2]
[375997234,1753815054839,-207.2232168,0.00019791,2]
[375997235,1753815054848,-578.1881624,0.00019791,2]
[375997236,1753815054858,-153.0,0.00019791,2]
[375997237,1753815054867,-578.1881624,0.00019791,2]
[375997238,1753815054877,-153.0,0.00019791,2]
[375997239,1753815054887,-578.1881624,0.00019791,2]
[375997240,1753815054897,-578.1881624,0.00019791,2]
[375997241,1753815054907,-153.0,0.00019791,2]
[375997242,1753815054916,-578.1881624,0.00019791,2]
[375997243,1753815054925,-208.965605,0.00019796,2]
[375997244,1753815054935,-430.1392862,0.00019799,2]
[375997245,1753815054945,-430.1392862,0.00019799,2]
[375997246,1753815054954,-430.1392862,0.00019799,2]
[375997247,1753815054964,-430.1392862,0.00019799,2]
[375997248,1753815054975,-430.1392862,0.00019799,2]
[375997249,1753815054985,-426.5104574,0.00019799,2]
[375997250,1753815054996,-430.1392862,0.00019799,2]
[375997251,1753815055006,-430.1392862,0.00019799,2]
[375997252,1753815055016,-859.8198634,0.00019799,2]
[375997253,1753815055027,-460.0,0.00019854,2]
[375997254,1753815055037,-2692.21,0.00019854,2]
[375997255,1753815055047,-460.0,0.00019854,2]
[375997256,1753815055058,-2011.98,0.00019854,2]
[375997257,1753815055068,-460.0,0.00019854,2]
[375997258,1753815055078,-460.0,0.00019854,2]
[375997259,1753815055088,-460.0,0.00019854,2]
[375997260,1753815055097,-460.0,0.00019854,2]
[375997261,1753815055107,-460.0,0.00019854,2]
[375997262,1753815055117,-1786.74,0.00019854,2]
[375997263,1753815055126,-1340.19,0.00019854,2]
[375997264,1753815055257,-485.19,0.00019854,2]
[375997265,1753815055268,-460.0,0.00019855,2]
[375997266,1753815055279,-460.0,0.00019855,2]
[375997267,1753815055288,-460.0,0.00019855,2]
[375997268,1753815055298,-776.43,0.00019855,2]
[375997269,1753815055308,-460.0,0.00019855,2]
[375997270,1753815055317,-460.0,0.00019855,2]
[375997271,1753815055328,-533.05,0.00019855,2]
[375997272,1753815055338,-487.71,0.00019855,2]
[375997273,1753815055348,-460.0,0.00019855,2]
[375997274,1753815055357,-831.96,0.00019855,2]
[375997275,1753815055367,-634.2,0.00019855,2]
[375997276,1753815055376,-460.0,0.00019855,2]
[375997277,1753815055386,-542.26,0.00019855,2]
[375997278,1753815055396,-443.40338464,0.00019856,2]
[375997279,1753815055405,-460.0,0.00019856,2]
[375997280,1753815055415,-460.0,0.00019856,2]
[375997281,1753815055425,-460.0,0.00019856,2]
[375997282,1753815055436,-460.0,0.00019856,2]
[375997283,1753815055445,-460.0,0.00019856,2]
[375997284,1753815055455,-460.0,0.00019856,2]
[375997285,1753815055466,-460.0,0.00019856,2]
[375997286,1753815055478,-539.65,0.00019856,2]
[375997287,1753815055488,-723.65,0.00019856,2]
[375997288,1753815055497,-486.47,0.00019856,2]
[375997289,1753815055507,-487.1,0.00019856,2]
[375997290,1753815055517,-460.0,0.00019856,2]
[375997291,1753815055527,-460.0,0.00019856,2]
[375997292,1753815055537,-460.0,0.00019856,2]
[375997293,1753815055548,-460.0,0.00019856,2]
[375997294,1753815055557,-460.0,0.00019856,2]
[375997295,1753815055567,-824.74,0.00019856,2]
[375997296,1753815055578,-460.0,0.00019856,2]
[375997297,1753815055587,-532.21,0.00019856,2]
[375997298,1753815055597,-533.02,0.00019856,2]
[375997299,1753815055607,-517.17,0.00019856,2]
[375997300,1753815055617,-460.0,0.00019856,2]
[375997301,1753815055626,-538.23,0.00019856,2]
[375997302,1753815055636,-460.0,0.00019857,2]
[375997303,1753815055646,-460.0,0.00019857,2]
[375997304,1753815055656,-4635.47,0.00019857,2]
[375997305,1753815055666,-151.0,0.00019857,2]
[375997306,1753815055676,-460.0,0.00019857,2]
[375997307,1753815055685,-1823.37,0.00019857,2]
[375997308,1753815055695,-460.0,0.00019857,2]
[375997309,1753815055704,-460.0,0.00019857,2]
[375997310,1753815055715,-460.0,0.00019857,2]
[375997311,1753815055724,-460.0,0.00019857,2]
[375997312,1753815055734,-460.0,0.00019857,2]
[375997313,1753815055743,-596.76,0.00019857,2]
[375997314,1753815055753,-460.0,0.00019857,2]
[375997315,1753815055762,-460.0,0.00019857,2]
[375997316,1753815055772,-1535.87,0.00019857,2]
[375997317,1753815055782,-151.0,0.00019857,2]
[375997318,1753815055791,-460.0,0.00019857,2]
[375997319,1753815055801,-460.0,0.00019857,2]
[375997320,1753815055810,-151.0,0.00019857,2]
[375997321,1753815055819,-151.0,0.00019857,2]
[375997322,1753815055829,-498.75854964,0.00019857,2]
[375997323,1753815055839,-460.0,0.00019857,2]
[375997324,1753815055849,-675.4,0.00019857,2]
[375997325,1753815055859,-518.24,0.00019857,2]
[375997326,1753815055868,-460.0,0.00019857,2]
[375997327,1753815055877,-455.08,0.00019857,2]
[375997328,1753815055887,-460.0,0.00019857,2]
[375997329,1753815055896,-460.0,0.00019857,2]
[375997330,1753815055906,-460.0,0.00019857,2]
[375997331,1753815055915,-460.0,0.00019857,2]
[375997332,1753815055925,-460.0,0.00019857,2]
[375997333,1753815055934,-460.0,0.00019857,2]
[375997334,1753815055944,-460.0,0.00019857,2]
[375997335,1753815055954,-1950.65,0.00019857,2]
[375997336,1753815055964,-751.06,0.00019857,2]
[375997337,1753815055974,-1224.6,0.00019857,2]
[375997338,1753815055983,-460.0,0.00019857,2]
[375997339,1753815055993,-460.0,0.00019857,2]
[375997340,1753815056002,-460.0,0.00019857,2]
[375997341,1753815056012,-460.0,0.00019857,2]
[375997342,1753815056022,-460.0,0.00019857,2]
[375997343,1753815056033,-596.3951263,0.00019857,2]
[375997344,1753815056043,-481.85508871,0.00019857,2]
[375997345,1753815056052,-569.46,0.00019857,2]
[375997346,1753815056062,-460.0,0.00019857,2]
[375997347,1753815056072,-460.0,0.00019857,2]
[375997348,1753815056082,-460.0,0.00019857,2]
[375997349,1753815056091,-151.0,0.00019857,2]
[375997350,1753815056101,-460.0,0.00019857,2]
[375997351,1753815056111,-199.000394,0.00019857,2]
[375997352,1753815056120,-151.0,0.00019858,2]
[375997353,1753815056130,-151.0,0.00019858,2]
[375997354,1753815056140,-189.040139,0.00019858,2]
[375997355,1753815056149,-151.0,0.00019858,2]
[375997356,1753815056160,-289.758156,0.00019858,2]
[375997357,1753815056169,-151.0,0.00019858,2]
[375997358,1753815056179,-1552.28,0.00019858,2]
[375997359,1753815056188,-467.90189732,0.00019858,2]
[375997360,1753815056198,-460.0,0.00019858,2]
[375997361,1753815056207,-460.0,0.00019858,2]
[375997362,1753815056216,-8314.2,0.00019858,2]
[375997363,1753815056227,-1632.28,0.00019858,2]
[375997364,1753815056236,-151.0,0.00019859,2]
[375997365,1753815056246,-460.0,0.00019859,2]
[375997366,1753815056256,-2333.32,0.00019859,2]
[375997367,1753815056267,-151.0,0.00019859,2]
[375997368,1753815056276,-235.25,0.00019859,2]
[375997369,1753815056286,-2180.27,0.00019859,2]
[375997370,1753815056296,-1626.06,0.0001986,2]
[375997371,1753815056305,-151.0,0.00019863,2]
[375997372,1753815056315,-204.90554,0.00019863,2]
[375997373,1753815056325,-204.90554,0.00019863,2]
[375997374,1753815056334,-153.412161,0.00019863,2]
[375997375,1753815056344,-1000.0,0.00019921,2]
[375997376,1753815056354,-500.0,0.00019921,2]
[375997377,1753815056363,-2159.0,0.00020007,2]
[375997378,1753815056373,-419.516,0.00020007,2]
[375997379,1753815056383,-969.0,0.00020007,2]
[375997380,1753815056392,-425.682,0.00020007,2]
[375997381,1753815056402,-260.0,0.00020021,2]
[375997382,1753815056411,-428.32767121,0.00020031,2]
[375997383,1753815056422,-500.0,0.0002012,2]
[375997384,1753815056431,-500.0,0.0002012,2]
[375997385,1753815056441,-2692.21,0.00020128,2]
[375997386,1753815056451,-460.0,0.00020128,2]
[375997387,1753815056461,-2011.98,0.00020128,2]
[375997388,1753815056470,-460.0,0.00020128,2]
[375997389,1753815056484,-460.0,0.00020128,2]
[375997390,1753815056494,-460.0,0.00020128,2]
[375997391,1753815056504,-1786.74,0.00020128,2]
[375997392,1753815056514,-1340.19,0.00020128,2]
[375997393,1753815056525,-485.19,0.00020128,2]
[375997394,1753815056535,-460.0,0.00020129,2]
[375997395,1753815056544,-776.43,0.00020129,2]
[375997397,1753815056554,-368.02867891,0.00020129,2]
[375997398,1753815056563,-460.0,0.00020129,2]
[375997400,1753815056572,-533.05,0.00020129,2]
[375997402,1753815056583,-487.71,0.00020129,2]
[375997404,1753815056593,-460.0,0.00020129,2]
[375997406,1753815056603,-831.96,0.00020129,2]
[375997408,1753815056612,-634.2,0.00020129,2]
[375997410,1753815056622,-460.0,0.00020129,2]
[375997412,1753815056631,-542.26,0.00020129,2]
[375997414,1753815056641,-460.0,0.0002013,2]
[375997416,1753815056650,-539.04,0.0002013,2]
[375997418,1753815056660,-460.0,0.0002013,2]
[375997420,1753815056670,-545.41,0.0002013,2]
[375997421,1753815056679,-460.0,0.0002013,2]
[375997423,1753815056688,-723.65,0.0002013,2]
[375997425,1753815056698,-486.47,0.0002013,2]
[375997427,1753815056707,-487.1,0.0002013,2]
[375997429,1753815056717,-460.0,0.0002013,2]
[375997431,1753815056726,-460.0,0.0002013,2]
[375997433,1753815056736,-460.0,0.0002013,2]
[375997435,1753815056745,-460.0,0.0002013,2]
[375997437,1753815056754,-460.0,0.0002013,2]
[375997439,1753815056764,-824.74,0.0002013,2]
[375997441,1753815056773,-460.0,0.0002013,2]
[375997443,1753815056783,-533.02,0.0002013,2]
[375997445,1753815056793,-538.23,0.0002013,2]
[375997447,1753815056803,-460.0,0.00020131,2]
[375997449,1753815056812,-4635.47,0.00020131,2]
[375997451,1753815056822,-282.56478394,0.00020131,2]
[375997453,1753815056832,-460.0,0.00020131,2]
[375997455,1753815056841,-1823.37,0.00020131,2]
[375997457,1753815056851,-460.0,0.00020131,2]
[375997459,1753815056861,-460.0,0.00020131,2]
[375997461,1753815056871,-460.0,0.00020131,2]
[375997462,1753815056880,-460.0,0.00020131,2]
[375997464,1753815056889,-596.76,0.00020131,2]
[375997466,1753815056899,-460.0,0.00020131,2]
[375997468,1753815056909,-460.0,0.00020131,2]
[375997470,1753815056919,-1535.87,0.00020131,2]
[375997472,1753815056928,-460.0,0.00020131,2]
[375997473,1753815056937,-460.0,0.00020131,2]
[375997474,1753815056951,-151.0,0.00020131,2]
[375997475,1753815056961,-151.0,0.00020131,2]
[375997476,1753815056970,-675.4,0.00020131,2]
[375997477,1753815056979,-518.24,0.00020131,2]
[375997478,1753815056989,-460.0,0.00020131,2]
[375997479,1753815056998,-460.0,0.00020131,2]
[375997480,1753815057007,-489.32238134,0.00020131,2]
[375997481,1753815057017,-460.0,0.00020131,2]
[375997482,1753815057026,-460.0,0.00020131,2]
[375997483,1753815057036,-460.0,0.00020131,2]
[375997484,1753815057045,-1950.65,0.00020131,2]
[375997485,1753815057054,-751.06,0.00020131,2]
[375997486,1753815057064,-1224.6,0.00020131,2]
[375997487,1753815057074,-460.0,0.00020131,2]
[375997488,1753815057084,-460.0,0.00020131,2]
[375997489,1753815057094,-460.0,0.00020131,2]
[375997490,1753815057103,-460.0,0.00020131,2]
[375997491,1753815057112,-569.46,0.00020131,2]
[375997492,1753815057122,-460.0,0.00020131,2]
[375997493,1753815057131,-151.0,0.00020131,2]
[375997494,1753815057141,-460.0,0.00020131,2]
[375997495,1753815057151,-1552.28,0.00020132,2]
[375997496,1753815057160,-535.21,0.00020132,2]
[375997497,1753815057170,-8314.2,0.00020132,2]
[375997498,1753815057180,-1632.28,0.00020132,2]
[375997499,1753815057189,-151.0,0.00020133,2]
[375997500,1753815057198,-151.0,0.00020133,2]
[375997501,1753815057208,-151.0,0.00020133,2]
[375997502,1753815057217,-284.06082,0.00020133,2]
[375997503,1753815057227,-460.0,0.00020133,2]
[375997504,1753815057237,-2333.32,0.00020133,2]
[375997505,1753815057246,-151.0,0.00020133,2]
[375997507,1753815057255,-2180.27,0.00020133,2]
[375997509,1753815057266,-151.0,0.00020134,2]
[375997510,1753815057275,-1626.06,0.00020134,2]
[375997512,1753815057285,-151.0,0.00020136,2]
[375997514,1753815057295,-151.0,0.00020137,2]
[375997515,1753815057305,-204.90554,0.00020137,2]
[375997517,1753815057315,-204.90554,0.00020137,2]
[375997518,1753815057325,-333.13976,0.00020187,2]
[375997520,1753815057335,-1766.0,0.00020193,3]
[375997534,1753815057463,-578.1881624,0.00020329,2]
[375997536,1753815057477,-1156.3763248,0.00020329,2]
[375997537,1753815057487,-174.277482,0.00020331,2]
[375997539,1753815057497,-204.56815493,0.00020354,2]
[375997541,1753815057507,-500.0,0.00020377,2]
[375997544,1753815057519,-1000.0,0.000204,2]
[375997545,1753815057530,-2692.21,0.00020402,2]
[375997547,1753815057540,-460.0,0.00020402,2]
[375997549,1753815057551,-2011.98,0.00020402,2]
[375997551,1753815057562,-460.0,0.00020402,2]
[375997553,1753815057572,-460.0,0.00020402,2]
[375997555,1753815057582,-460.0,0.00020402,2]
[375997557,1753815057592,-1786.74,0.00020402,2]
[375997559,1753815057601,-1340.19,0.00020402,2]
[375997561,1753815057611,-485.19,0.00020402,2]
[375997562,1753815057620,-460.0,0.00020403,2]
[375997563,1753815057630,-776.43,0.00020403,2]
[375997564,1753815057640,-460.0,0.00020403,2]
[375997565,1753815057650,-533.05,0.00020403,2]
[375997566,1753815057661,-487.71,0.00020403,2]
[375997567,1753815057671,-460.0,0.00020403,2]
[375997568,1753815057685,-831.96,0.00020403,2]
[375997569,1753815057708,-634.2,0.00020403,2]
[375997570,1753815057730,-460.0,0.00020403,2]
[375997571,1753815057752,-542.26,0.00020403,2]
[375997573,1753815057773,-460.0,0.00020404,2]
[375997575,1753815057793,-460.0,0.00020404,2]
[375997577,1753815057814,-460.0,0.00020404,2]
[375997580,1753815057836,-723.65,0.00020404,2]
[375997582,1753815057857,-486.47,0.00020404,2]
[375997583,1753815057879,-487.1,0.00020404,2]
[375997585,1753815057900,-460.0,0.00020404,2]
[375997587,1753815057923,-460.0,0.00020404,2]
[375997589,1753815057944,-460.0,0.00020404,2]
[375997591,1753815057966,-460.0,0.00020404,2]
[375997593,1753815057989,-460.0,0.00020404,2]
[375997595,1753815058007,-824.74,0.00020404,2]
[375997596,1753815058019,-460.0,0.00020404,2]
[375997598,1753815058029,-533.02,0.00020404,2]
[375997600,1753815058039,-538.23,0.00020404,2]
[375997602,1753815058061,-584.42,0.00020405,2]
[375997604,1753815058072,-4635.47,0.00020405,2]
[375997606,1753815058082,-460.0,0.00020405,2]
[375997608,1753815058091,-1687.13345157,0.00020405,2]
[375997623,1753815058247,-136.23654843,0.00020405,2]
[375997625,1753815058257,-513.6095809,0.00020405,2]
[375997627,1753815058267,-460.0,0.00020405,2]
[375997629,1753815058276,-160.56420991,0.00020405,2]
[375997631,1753815058285,-596.76,0.00020405,2]
[375997633,1753815058295,-460.0,0.00020405,2]
[375997635,1753815058304,-460.0,0.00020405,2]
[375997637,1753815058314,-1535.87,0.00020405,2]
[375997639,1753815058323,-460.0,0.00020405,2]
[375997640,1753815058336,-151.0,0.00020405,2]